Cogmind - Beta 10.2 --- EXPLORER MODE // 2020.12.21 @ 21:13:13 Player: Luigi Panache Result: Destroyed by B-99 Colossus with Linear Accelerator Performance ------------- Evolutions (9) 4500 Regions Visited (29) 5800 Robots Destroyed (247) 1235 Value Destroyed (11478) 11478 Prototype IDs (54) 1080 Alien Tech Used (3) 600 Bonus (8672) 8672 TOTAL SCORE: 33365 Bonus ------- High Alert Combat Kills 297 Follower Combat Kills 888 Network Hubs Disabled 200 Aligned with FarCom 300 Met Zhirov 300 Found Hidden Lab 3000 Used Core Reset Matrix 3000 Pursued by Intercept 1000 Friendly Fire -313 Cogmind --------- Core Integrity 0/1600 Matter 295/300 Energy 100/100 System Corruption 2% Temperature Cool (0) Movement Core (50) Location -1/Access Parts ------- > --- POWER (2) -------- (None) > --- PROPULSION (4) --- (None) > --- UTILITY (16) ----- (None) > --- WEAPON (4) ------- (None) > --- INVENTORY (4) ---- Improved Arc Projector Improved Arc Projector Improved Arc Projector Improved Arc Projector Peak State ------------ > --- POWER ------------ Heavy Antimatter Reactor > --- PROPULSION ------- Centrium Heavy Treads Centrium Heavy Treads > --- UTILITY ---------- Advanced Heat Sink Improved Coolant Injector Large Storage Unit Large Storage Unit Large Storage Unit Improved Target Analyzer Improved Maneuvering Thrusters Light Regenerative Plating Improved Hacking Suite Advanced Hacking Suite System Shield > --- WEAPON ----------- Coil Gun KE Penetrator Improved KE Penetrator Improved KE Penetrator > --- INVENTORY -------- Neutrino Core Light Antimatter Reactor Armored Medium Treads Heavy Treads Enhanced Armored Medium Treads Flying Fortress v7 Transdimensional Reconstructor Flak Gun Flak Gun Hypervelocity Gauss Rifle Hypervelocity Gauss Rifle KE Penetrator KE Penetrator KE Penetrator KE Penetrator Advanced EMP Blaster Heavy Rocket Launcher CR-A16's Pointy Stick [Rating: 128] Favorites ----------- Power Deuterium Engine Engine Deuterium Engine Power Core Neutrino Core Reactor Quantum Reactor Propulsion Light Treads Treads Light Treads Hover Unit Aerolev Unit Flight Unit Flying Fortress v7 Utility Large Storage Unit Device Advanced Heat Sink Storage Large Storage Unit Processor Improved Target Analyzer Hackware Advanced Hacking Suite Protection Light Regenerative Plating Weapon Hypervelocity Gauss Rifle Energy Gun Medium Laser Ballistic Gun Hypervelocity Gauss Rifle Launcher Advanced EMP Blaster Piercing Weapon CR-A16's Pointy Stick Build | -11 -10 -10 -10 -9 -8 -8 -7 -7 -7 -7 -7 -7 -6 -6 -6 -6 -6 -6 -5 -5 -5 -5 -4 -4 -4 -4 -3 -2 -1 ------- Run | Scr Mat Min Exi Min Mat Sto Fac Was Fac Low Low Zio Pro Fac Ext Cet Arc Hub Fac Upp Upp Zhi Pro Fac Arm Lab Res Res Acc Slots Evolved 19 | . 1 . . . 4 . 2 . . . . . . 2 . . . . 2 . . . . 2 . . 2 2 2 Power 1 | . . . . . . . . . . . . . . . . . . . . . . . . . . . 1 . . Propulsion 2 | . . . . . 2 . . . . . . . . . . . . . . . . . . . . . . . . Utility 14 | . . . . . 2 . 1 . . . . . . 2 . . . . 2 . . . . 2 . . 1 2 2 Weapon 2 | . 1 . . . . . 1 . . . . . . . . . . . . . . . . . . . . . . Parts Attached 177 | 7 26 . 1 3 6 26 13 1 5 . . . 1 10 3 7 3 2 7 . . 5 1 8 . 8 18 3 13 Power 17 | 1 3 . . 1 . 4 . . 1 . . . . 1 . 1 . . . . . 1 . . . . 2 1 1 Engine 11 | 1 3 . . 1 . 4 . . 1 . . . . 1 . . . . . . . . . . . . . . . Core 1 | . . . . . . . . . . . . . . . . . . . . . . . . . . . 1 . . Reactor 5 | . . . . . . . . . . . . . . . . 1 . . . . . 1 . . . . 1 1 1 Propulsion 45 | 2 11 . . . 3 10 4 . . . . . . 3 3 2 . . . . . . . 3 . . 4 . . Treads 42 | 2 11 . . . 3 8 4 . . . . . . 3 3 2 . . . . . . . 3 . . 3 . . Leg . | . . . . . . . . . . . . . . . . . . . . . . . . . . . . . . Wheel . | . . . . . . . . . . . . . . . . . . . . . . . . . . . . . . Hover 1 | . . . . . . 1 . . . . . . . . . . . . . . . . . . . . . . . Flight 2 | . . . . . . 1 . . . . . . . . . . . . . . . . . . . . 1 . . Utility 50 | 2 5 . 1 . 2 3 2 1 2 . . . . 3 . . 1 1 6 . . 4 . 3 . 3 4 2 5 Device 14 | . . . . . . . 1 . 1 . . . . 2 . . . . 4 . . . . 2 . 1 . . 3 Storage 7 | 1 1 . 1 . . . 1 . . . . . . . . . . 1 . . . . . . . . . . 2 Processor 5 | . . . . . . . . . . . . . . . . . . . 1 . . . . 1 . . 2 1 . Hackware 7 | . . . . . . . . 1 . . . . . . . . 1 . 1 . . 1 . . . 1 1 1 . Protection 17 | 1 4 . . . 2 3 . . 1 . . . . 1 . . . . . . . 3 . . . 1 1 . . Artifact . | . . . . . . . . . . . . . . . . . . . . . . . . . . . . . . Weapon 65 | 2 7 . . 2 1 9 7 . 2 . . . 1 3 . 4 2 1 1 . . . 1 2 . 5 8 . 7 Energy Gun 20 | 2 6 . . 2 1 4 1 . . . . . . . . . . . . . . . . 1 . 1 1 . 1 Energy Cannon . | . . . . . . . . . . . . . . . . . . . . . . . . . . . . . . Ballistic Gun 35 | . 1 . . . . 3 6 . 2 . . . 1 3 . 3 2 1 1 . . . 1 1 . 4 6 . . Ballistic Cannon . | . . . . . . . . . . . . . . . . . . . . . . . . . . . . . . Launcher 7 | . . . . . . 2 . . . . . . . . . 1 . . . . . . . . . . . . 4 Special Weapon . | . . . . . . . . . . . . . . . . . . . . . . . . . . . . . . Impact Weapon . | . . . . . . . . . . . . . . . . . . . . . . . . . . . . . . Slashing Weapon . | . . . . . . . . . . . . . . . . . . . . . . . . . . . . . . Piercing Weapon 3 | . . . . . . . . . . . . . . . . . . . . . . . . . . . 1 . 2 Special Melee Weapon . | . . . . . . . . . . . . . . . . . . . . . . . . . . . . . . Unidentified Prototypes 21 | . . . . . . 7 . . 1 . . . . . . 2 . . . . . 3 . 1 1 4 1 1 . Parts Lost 49 | . . . . . . 3 3 . . . . . . 1 1 5 . . . . . . . 4 . . 22 . 10 Power 6 | . . . . . . . . . . . . . . 1 . 1 . . . . . . . . . . 3 . 1 Propulsion 5 | . . . . . . . . . . . . . . . 1 . . . . . . . . . . . 3 . 1 Utility 13 | . . . . . . 1 . . . . . . . . . 1 . . . . . . . 1 . . 6 . 4 Weapon 25 | . . . . . . 2 3 . . . . . . . . 3 . . . . . . . 3 . . 10 . 4 Highest Loss Streak 13 | . . . . . . 2 3 . . . . . . 1 1 3 . . . . . . . 1 . . 13 . 10 Average Slot Usage (%) 90 | . 96 100 100 100 91 94 96 100 99 100 100 100 100 92 89 71 79 84 87 88 88 88 88 86 . 83 81 38 54 Engine 4 | . 11 12 12 12 8 8 7 7 6 7 7 7 7 5 6 1 . . . . . . . . . . . . . Reactor 2 | . . . . . . . . . . . . . . . . 3 6 6 5 5 5 5 5 5 . 5 4 4 2 Treads 19 | . 24 25 25 25 33 32 27 28 28 28 28 28 28 25 21 15 12 12 11 11 11 11 11 9 . 10 9 . . Device 4 | . . . . . . . 6 3 . 7 7 7 7 6 6 6 6 6 10 5 5 5 5 11 . 2 . . 4 Storage 14 | . 12 12 18 25 16 16 14 14 14 14 14 14 14 12 12 12 12 15 16 16 16 16 16 15 . 15 12 8 6 Processor 2 | . . . . . . . . . . . . . . . . . . . . 5 5 5 5 8 . 6 9 9 10 Hackware 8 | . . . . . . . . 3 7 7 7 7 7 6 6 6 10 12 15 16 16 16 16 15 . 18 18 12 10 Protection 8 | . 11 12 6 . 8 11 14 14 13 7 7 7 7 12 12 6 6 6 5 5 5 5 5 5 . 8 8 . . Energy Gun 4 | . 24 25 25 25 16 9 7 7 . . . . . . . . . . . . . . . . . 2 . . 2 Ballistic Gun 19 | . 10 12 12 12 8 13 18 21 27 28 28 28 28 25 25 18 25 25 22 22 22 22 22 17 . 15 13 . . Naked Turns 16 | . . . . . . . . . . . . . . . . . . . . . . . . . . . . . 16 Heaviest Build 104 | 18 27 27 40 42 57 63 75 75 72 65 65 65 67 84 84 84 80 96 102 96 96 96 94 96 82 98 104 44 70 Greatest Support 160 | 40 40 40 40 40 80 83 83 83 83 83 83 83 83 93 108 160 160 160 160 160 160 160 160 160 155 155 155 72 72 Greatest Overweight (x) 23 | . 8 . . 1 . 9 . . . . . . . . 1 . . . . . . . . . . . 1 . 23 Average Overweight (x) . | . . . . . . . . . . . . . . . . . . . . . . . . . . . . . . Largest Inventory Capacity 22 | 8 10 10 16 16 16 16 16 16 16 16 16 16 16 16 16 16 16 22 22 22 22 22 22 22 22 22 22 16 20 Average Capacity 17 | 5 9 10 12 16 16 16 16 16 16 16 16 16 16 16 16 16 16 19 22 22 22 22 22 22 22 22 21 16 15 Most Carried 22 | 3 10 10 14 16 16 16 16 16 16 16 16 16 16 16 16 16 16 16 22 22 22 22 22 22 21 21 21 4 4 Average Carried 16 | 1 4 10 11 15 13 15 15 16 16 15 16 16 16 15 16 16 15 15 20 22 22 21 22 21 21 19 15 3 2 Final Capacity 22 | 8 10 10 16 16 16 16 16 16 16 16 16 16 16 16 16 16 16 22 22 22 22 22 22 22 22 22 16 16 4 Final Carried 22 | 3 10 10 14 16 16 16 16 16 16 16 16 16 16 16 16 16 16 16 22 22 22 22 22 22 21 21 5 3 4 Class Distribution -------------------- 49% | Hacker-Skirmisher 26% | Hacker-Gunner 6% | Hacker-Tank 6% | Wizard-Gunner 5% | Wizard-Mutant 3% | Hacker-Mutant Dominant Class ---------------- Hacker-Tank | -10/Materials Hacker-Tank | -10/Mines Hacker-Tank | -10/Exiles Hacker-Skirmisher | -9/Mines Hacker-Skirmisher | -8/Materials Hacker-Skirmisher | -8/Storage Hacker-Skirmisher | -7/Factory Hacker-Skirmisher | -7/Waste Hacker-Skirmisher | -7/Factory Hacker-Gunner | -7/Lower Caves Hacker-Gunner | -7/Lower Caves Hacker-Gunner | -7/Zion Hacker-Gunner | -6/Proximity Caves Hacker-Skirmisher | -6/Factory Hacker-Skirmisher | -6/Extension Hacker-Skirmisher | -6/Cetus Hacker-Skirmisher | -6/Archives Hacker-Skirmisher | -6/Hub_04(d) Hacker-Skirmisher | -5/Factory Hacker-Gunner | -5/Upper Caves Hacker-Gunner | -5/Upper Caves Hacker-Gunner | -5/Zhirov Hacker-Gunner | -4/Proximity Caves Hacker-Skirmisher | -4/Factory Hacker-Skirmisher | -4/Armory Wizard-Gunner | -4/Lab Wizard-Gunner | -3/Research Wizard-Mutant | -2/Research Wizard-Mutant | -1/Access Resources | -11 -10 -10 -10 -9 -8 -8 -7 -7 -7 -7 -7 -7 -6 -6 -6 -6 -6 -6 -5 -5 -5 -5 -4 -4 -4 -4 -3 -2 -1 ----------- Run | Scr Mat Min Exi Min Mat Sto Fac Was Fac Low Low Zio Pro Fac Ext Cet Arc Hub Fac Upp Upp Zhi Pro Fac Arm Lab Res Res Acc Matter Collected 8623 | 248 246 50 . 46 50 797 283 111 133 181 25 11 593 983 272 619 149 116 737 136 68 . 405 609 . 90 1487 . 178 Remotely . | . . . . . . . . . . . . . . . . . . . . . . . . . . . . . . Salvage Created 13667 | 13 551 . . 184 . 1583 571 . 110 246 . . 1032 1643 290 519 190 165 1570 488 113 . 901 1018 . 90 2306 . 84 Parts 710 | 1 27 . . 9 . 94 33 . 8 7 . . 40 93 18 23 6 8 106 22 4 . 34 52 . 11 112 . 2 Haulers Intercepted 7 | . 2 . . . . 3 . . . . . . . 1 1 . . . . . . . . . . . . . . Recyclers Shooed 6 | . . . . . . 4 . . . . . . . . . . . . . . . . . . . . 2 . . Parts Field Recycled . | . . . . . . . . . . . . . . . . . . . . . . . . . . . . . . Retrieved Matter . | . . . . . . . . . . . . . . . . . . . . . . . . . . . . . . Parts Self-Destructed . | . . . . . . . . . . . . . . . . . . . . . . . . . . . . . . Prevented . | . . . . . . . . . . . . . . . . . . . . . . . . . . . . . . Kills | -11 -10 -10 -10 -9 -8 -8 -7 -7 -7 -7 -7 -7 -6 -6 -6 -6 -6 -6 -5 -5 -5 -5 -4 -4 -4 -4 -3 -2 -1 ------- Run | Scr Mat Min Exi Min Mat Sto Fac Was Fac Low Low Zio Pro Fac Ext Cet Arc Hub Fac Upp Upp Zhi Pro Fac Arm Lab Res Res Acc Combat Hostiles Destroyed 194 | . 5 . . 4 . 24 12 . 2 5 . . 16 20 2 12 2 1 23 9 4 . 11 13 . 1 26 . 2 Melee 1 | . . . . . . . . . . . . . . . . . . . . . . . . . . . 1 . . Guns 189 | . 5 . . 4 . 24 12 . 2 5 . . 16 20 2 11 2 1 23 9 4 . 11 13 . 1 24 . . AOE 3 | . . . . . . . . . . . . . . . . . . . . . . . . . . . 1 . 2 Classes Destroyed 17 | 1 5 . . 1 . 2 2 . . . . . 1 4 1 . . . . . . . . . . . . . . Worker 13 | . 1 . . . . 2 . . . . . . . 2 . . . 2 3 . . . . . . . 2 . 1 Builder 9 | . . . . . . . . . . . . . . 2 . . . . 2 . . . . 2 . . 3 . . Tunneler 1 | 1 . . . . . . . . . . . . . . . . . . . . . . . . . . . . . Hauler 7 | . 2 . . . . 3 . . . . . . . 1 1 . . . . . . . . . . . . . . Recycler 4 | . 1 . . . . 1 . . . . . . . . . . . . . . . . . 1 . . 1 . . Mechanic 1 | . . . . . . . . . . . . . . 1 . . . . . . . . . . . . . . . Operator 4 | . . . . . . . . . . . . . . 1 . . 1 1 . . . . . 1 . . . . . Watcher 14 | . 3 . . . . 2 1 . 1 . . . . . . 1 . 1 3 . . . . 1 . . . . 1 Swarmer 35 | . . . . . . . 6 . 1 2 . . 1 . . 6 . . 6 4 4 . . 3 . . 2 . . Grunt 74 | . 5 . . 3 . 11 1 . . 2 . . 10 13 1 2 . 1 6 3 . . 7 2 . . 7 . . Brawler 5 | . . . . 1 . . . . . . . . 1 . . . . . . 1 . . 1 . . . 1 . . Duelist 7 | . . . . . . 5 . . . . . . 2 . . . . . . . . . . . . . . . . Protector 1 | . . . . . . . . . . . . . 1 . . . . . . . . . . . . . . . . Sentry 26 | . . . . . . 8 4 . . 1 . . 1 3 . . 2 . 1 1 . . 1 1 . . 3 . . Hunter 16 | . . . . . . . . . . . . . . 3 . . . . 5 . . . 2 2 . . 4 . . Programmer 21 | . . . . . . . 1 . 1 . . . . 1 . . . . 5 . . . . 5 . . 6 . 2 Behemoth 2 | . . . . . . . . . . . . . . . 1 . . . . . . . . . . . 1 . . Cetus Guard 4 | . . . . . . . . . . . . . . . . 4 . . . . . . . . . . . . . Tracker 2 | . . . . . . . . . . . . . . . . . . . . . . . . . . . 2 . . Best Kill Streak 9 | 1 4 . . 2 . 6 4 . 1 3 . . 5 8 1 4 2 4 5 8 4 . 5 6 . 1 9 . 3 Combat Bots Only 8 | . 2 . . 2 . 5 4 . 1 3 . . 5 5 1 3 1 1 4 8 4 . 5 5 . 1 6 . 2 Max Kills in Single Turn 3 | 1 2 . . 2 . 2 1 . 1 2 . . 2 3 1 2 1 2 3 2 2 . 2 2 . 1 1 . 2 Gunslinging 1 | . . . . 1 . . . . . 1 . . 1 1 . 1 . . 1 1 1 . 1 1 . . . . . Exploded 2 | . . . . . . . . . . . . . . . . . . . . . . . . . . . 1 . 2 Melee 1 | . . . . . . . . . . . . . . . . . . . . . . . . . . . 1 . . Uniques/NPCs Destroyed 1 | . . . . . . . . . . . . . . . . . . . . . . . . . . 1 . . . A5 (-4/Lab) Combat | -11 -10 -10 -10 -9 -8 -8 -7 -7 -7 -7 -7 -7 -6 -6 -6 -6 -6 -6 -5 -5 -5 -5 -4 -4 -4 -4 -3 -2 -1 -------- Run | Scr Mat Min Exi Min Mat Sto Fac Was Fac Low Low Zio Pro Fac Ext Cet Arc Hub Fac Upp Upp Zhi Pro Fac Arm Lab Res Res Acc Damage Taken 16065 | . 297 . . 39 . 826 757 . 62 229 . . 496 452 161 1013 69 142 538 225 61 . 373 1332 . 430 5442 295 2826 Core 2693 | . 21 . . . . 44 28 . 13 41 . . 62 20 . 102 . 12 35 33 18 . 48 70 . 34 382 105 1625 Absorbed by Shields 111 | . . . . . . . . . . . . . . . 9 . . . 102 . . . . . . . . . . Core Remaining (%) 86 | 100 . . . 91 . 92 . . . . . . 79 . . . . 84 . . . . 86 . . 83 70 92 . Volleys Fired 525 | 2 31 . . 6 . 82 33 . 3 9 . . 31 47 13 40 7 10 35 8 4 . 20 41 . 17 80 . 6 Largest 4 | 2 3 . . 3 . 3 4 . 4 4 . . 4 4 4 4 4 4 4 4 4 . 4 4 . 4 4 . 2 Hottest 159 | 90 110 . . 125 . 135 144 . 117 117 . . 127 132 132 132 136 136 136 136 136 . 136 133 . 159 154 . 75 Shots Fired 1755 | 4 77 . . 18 . 222 103 . 12 36 . . 124 188 52 117 28 40 140 32 16 . 80 137 . 59 262 . 8 Gun 1742 | 4 77 . . 18 . 220 103 . 12 36 . . 124 188 52 114 28 40 140 32 16 . 80 137 . 59 262 . . Cannon . | . . . . . . . . . . . . . . . . . . . . . . . . . . . . . . Launcher 13 | . . . . . . 2 . . . . . . . . . 3 . . . . . . . . . . . . 8 Special . | . . . . . . . . . . . . . . . . . . . . . . . . . . . . . . Kinetic 1544 | . 19 . . 6 . 150 67 . 12 36 . . 124 188 52 114 28 40 140 32 16 . 80 137 . 58 245 . . Thermal 126 | 2 27 . . 8 . 53 36 . . . . . . . . . . . . . . . . . . . . . . Explosive 10 | . . . . . . 1 . . . . . . . . . 3 . . . . . . . . . . . . 6 Electromagnetic 75 | 2 31 . . 4 . 18 . . . . . . . . . . . . . . . . . . . 1 17 . 2 Robot Hit Streak 82 | 3 27 . . 42 . 56 46 . 9 22 . . 47 39 23 43 30 41 43 71 82 . 31 25 . 51 36 . 3 Robot Miss Streak 3 | . 2 . . . . 1 1 . 2 2 . . 3 1 2 2 . 1 1 . 1 . 1 1 . 1 3 . 2 Penetration Max 2 | . . . . . . . . . . . . . 1 2 1 1 . . 2 1 . . 1 1 . . 2 . . Secondary Targets 45 | . . . . 2 . 2 . . 1 2 . . 5 2 . 6 . 1 4 3 2 . 4 2 . . 9 . . Max Gunslinging Chain 2 | . . . . 1 . 1 . . 1 1 . . 1 1 . 1 . 1 1 1 2 . 1 1 . . 1 . . Shots Hit Robots 1427 | 3 60 . . 15 . 174 77 . 10 30 . . 107 135 42 101 20 26 111 28 13 . 66 114 . 53 235 . 7 Core Hits 727 | 2 23 . . 7 . 66 34 . 8 20 . . 74 82 15 41 5 9 56 17 7 . 28 38 . 47 137 1 10 Critical Hits 230 | . . . . . . 1 1 . 2 6 . . 19 43 11 24 6 3 26 8 2 . 12 25 . 6 35 . . Critical Kills 88 | . . . . . . . . . 2 1 . . 7 22 1 7 2 1 13 5 . . 6 9 . . 12 . . Critical Parts Destroyed 123 | . . . . . . 1 1 . . 5 . . 12 21 6 12 3 1 13 2 2 . 6 15 . 6 17 . . Melee Attacks 11 | . . . . . . . . . . . . . . . . . . . . . . . . . . . 9 . 2 Impact . | . . . . . . . . . . . . . . . . . . . . . . . . . . . . . . Slashing . | . . . . . . . . . . . . . . . . . . . . . . . . . . . . . . Piercing 11 | . . . . . . . . . . . . . . . . . . . . . . . . . . . 9 . 2 Sneak Attacks . | . . . . . . . . . . . . . . . . . . . . . . . . . . . . . . Combat Hostiles . | . . . . . . . . . . . . . . . . . . . . . . . . . . . . . . Follow-up Attacks . | . . . . . . . . . . . . . . . . . . . . . . . . . . . . . . Damage Inflicted 25735 | 39 820 . . 180 . 2860 1261 . 184 399 . . 1786 1703 491 1481 372 1456 2464 717 260 . 1197 2217 . 820 4403 4 621 Guns 22942 | 39 765 . . 180 . 2708 1261 . 184 399 . . 1786 1687 491 1078 372 534 2363 717 260 . 1197 2194 . 820 3907 . . Cannons . | . . . . . . . . . . . . . . . . . . . . . . . . . . . . . . Explosions 2263 | . 51 . . . . 132 . . . . . . . 12 . 403 . 922 65 . . . . . . . 131 . 547 Melee 372 | . . . . . . . . . . . . . . . . . . . . . . . . . . . 298 . 74 Ramming 158 | . 4 . . . . 20 . . . . . . . 4 . . . . 36 . . . . 23 . . 67 4 . Kinetic 20469 | . 72 . . 36 . 1874 770 . 184 399 . . 1786 1687 491 1078 372 534 2363 717 260 . 1197 2194 . 820 3635 . . Thermal 1677 | 24 277 . . 92 . 662 491 . . . . . . . . . . . . . . . . . . . 131 . . Explosive 963 | . . . . . . 34 . . . . . . . 12 . 403 . . 65 . . . . . . . . . 449 Electromagnetic 2096 | 15 467 . . 52 . 270 . . . . . . . . . . . 922 . . . . . . . . 272 . 98 Impact . | . . . . . . . . . . . . . . . . . . . . . . . . . . . . . . Slashing . | . . . . . . . . . . . . . . . . . . . . . . . . . . . . . . Piercing 372 | . . . . . . . . . . . . . . . . . . . . . . . . . . . 298 . 74 Highest Corruption 18 | . . . . . . 1 3 3 3 3 3 3 . . . . . . 1 1 1 1 1 . . 4 18 . 2 Average Corruption 2 | . . . . . . 1 2 3 3 3 3 3 . . . . . . 1 1 1 1 1 . . 3 6 . 1 Corruption Purged . | . . . . . . . . . . . . . . . . . . . . . . . . . . . . . . Effects 129 | . . . . . . 5 11 8 13 8 10 2 . . . . . . 2 5 1 . 3 . . 5 56 . . Message Errors 20 | . . . . . . 1 1 1 3 3 3 . . . . . . . . 1 . . . . . . 7 . . Matter Fused 23 | . . . . . . . 1 3 4 2 3 1 . . . . . . . . . . . . . . 9 . . Heat Flow Errors 15 | . . . . . . . 3 2 3 1 1 1 . . . . . . . . . . . . . . 4 . . Energy Discharges 17 | . . . . . . 1 3 1 3 1 2 . . . . . . . . 3 1 . . . . . 2 . . Data Loss (minor) 14 | . . . . . . 1 1 1 . 1 1 . . . . . . . 2 . . . 2 . . 3 2 . . Data Loss (major) 6 | . . . . . . . . . . . . . . . . . . . . . . . . . . . 6 . . Misfires 2 | . . . . . . . . . . . . . . . . . . . . . . . . . . . 2 . . Alerts 1 | . . . . . . . . . . . . . . . . . . . . . . . . . . . 1 . . Misdirections 2 | . . . . . . . . . . . . . . . . . . . . . . . . . . . 2 . . Targeting Errors 25 | . . . . . . 1 2 . . . . . . . . . . . . 1 . . 1 . . 2 18 . . Weapon Failures 4 | . . . . . . 1 . . . . . . . . . . . . . . . . . . . . 3 . . Overload Shots . | . . . . . . . . . . . . . . . . . . . . . . . . . . . . . . Overflow Damage 338 | . . . . . . 3 . . . . . . . . . . . 251 . . . . . . . . 3 . 81 Projectiles . | . . . . . . . . . . . . . . . . . . . . . . . . . . . . . . Explosions 335 | . . . . . . 3 . . . . . . . . . . . 251 . . . . . . . . . . 81 Melee 3 | . . . . . . . . . . . . . . . . . . . . . . . . . . . 3 . . Knockbacks . | . . . . . . . . . . . . . . . . . . . . . . . . . . . . . . Impact . | . . . . . . . . . . . . . . . . . . . . . . . . . . . . . . Kinetic . | . . . . . . . . . . . . . . . . . . . . . . . . . . . . . . Secondary . | . . . . . . . . . . . . . . . . . . . . . . . . . . . . . . Self-Inflicted Damage 160 | . 26 . . . . 16 . . . . . . . . . . . 63 . . . . . . . . 53 2 . Shots 5 | . 1 . . . . 2 . . . . . . . . . . . 1 . . . . . . . . 1 . . Rammed 21 | . 1 . . . . 3 . . . . . . . 2 . . . 1 1 . . . . 4 . . 8 1 . Targets Rammed 21 | . 1 . . . . 3 . . . . . . . 2 . . . 1 1 . . . . 4 . . 8 1 . Kicked . | . . . . . . . . . . . . . . . . . . . . . . . . . . . . . . Crushed . | . . . . . . . . . . . . . . . . . . . . . . . . . . . . . . Highest Temperature 562 | 48 378 . . 225 . 435 562 176 242 145 80 249 108 135 72 36 24 60 24 6 6 . 1 . . . 291 . . Average Temperature 98 | 25 123 . . 101 . 147 169 82 75 21 44 127 44 37 25 16 9 16 4 3 3 . 1 . . . 79 . . Received Heat Transfer 3063 | . 180 . . 39 . 558 99 . 9 81 . . 276 213 72 72 . 54 75 27 . . 159 255 . . 624 90 180 Effects 30 | . 6 . . . . 10 10 . . . . . . . . . . . . . . . . . . . 4 . . Shutdowns 3 | . . . . . . 1 2 . . . . . . . . . . . . . . . . . . . . . . Energy Bleed 5 | . 2 . . . . 1 2 . . . . . . . . . . . . . . . . . . . . . . Interference 14 | . 4 . . . . 4 2 . . . . . . . . . . . . . . . . . . . 4 . . Matter Decay 2 | . . . . . . 2 . . . . . . . . . . . . . . . . . . . . . . . Short Circuit 1 | . . . . . . 1 . . . . . . . . . . . . . . . . . . . . . . . Damage (minor) 3 | . . . . . . 1 2 . . . . . . . . . . . . . . . . . . . . . . Damage (major) 2 | . . . . . . . 2 . . . . . . . . . . . . . . . . . . . . . . Siege Activations . | . . . . . . . . . . . . . . . . . . . . . . . . . . . . . . Robots Corrupted 2 | . . . . . . . . . . . . . . . . . . 2 . . . . . . . . . . . Combat Hostiles . | . . . . . . . . . . . . . . . . . . . . . . . . . . . . . . Parts Fried 5 | . 1 . . . . . . . . . . . . . . . . 3 . . . . . . . . 1 . . Impact Corruptions 1 | . . . . . . . . . . . . . . . . . . . . . . . . . . . 1 . . Robots Melted . | . . . . . . . . . . . . . . . . . . . . . . . . . . . . . . Combat Hostiles . | . . . . . . . . . . . . . . . . . . . . . . . . . . . . . . Parts Melted 11 | . 3 . . . . 1 4 . . . . . . . . 1 . . . . . . . . . . 2 . . Heat Transferred 4024 | 74 766 . . 235 . 1739 1110 . . . . . . . . . . . . . . . . . . . 100 . . Parts Sabotaged . | . . . . . . . . . . . . . . . . . . . . . . . . . . . . . . Parts Stolen . | . . . . . . . . . . . . . . . . . . . . . . . . . . . . . . Parts Stripped . | . . . . . . . . . . . . . . . . . . . . . . . . . . . . . . Power Chain Reactions 2 | . 1 . . . . . . . . . . . . . . . . . . . . . . . . . 1 . . Missiles Intercepted . | . . . . . . . . . . . . . . . . . . . . . . . . . . . . . . Alert | -11 -10 -10 -10 -9 -8 -8 -7 -7 -7 -7 -7 -7 -6 -6 -6 -6 -6 -6 -5 -5 -5 -5 -4 -4 -4 -4 -3 -2 -1 ------- Run | Scr Mat Min Exi Min Mat Sto Fac Was Fac Low Low Zio Pro Fac Ext Cet Arc Hub Fac Upp Upp Zhi Pro Fac Arm Lab Res Res Acc Peak Influence 757 | 5 139 . . 100 65 333 475 114 93 . . . . 757 214 192 149 340 369 . . . . 151 50 . 386 95 557 Initial 164 | . 2 . . . 27 19 18 114 . . . . . 14 164 9 40 35 7 . . . . 24 50 . . 35 42 Average 106 | 3 38 . . 45 32 115 91 110 16 . . . . 324 105 108 101 84 93 . . . . 26 50 . 93 37 395 Maximum Alert Level 3 | . . . . . . 1 2 . . . . . . 3 1 . . 1 1 . . . . . . . 1 . 2 Low Security (%) 84 | 100 100 100 . 100 100 70 91 100 100 . . . . 40 84 100 100 92 87 . . . . 100 100 . 88 100 19 Level 1 7 | . . . . . . 29 3 . . . . . . 11 15 . . 7 12 . . . . . . . 11 . 3 Level 2 6 | . . . . . . . 5 . . . . . . 43 . . . . . . . . . . . . . . 76 Level 3 . | . . . . . . . . . . . . . . 4 . . . . . . . . . . . . . . . Level 4 . | . . . . . . . . . . . . . . . . . . . . . . . . . . . . . . Level 5 . | . . . . . . . . . . . . . . . . . . . . . . . . . . . . . . High Security . | . . . . . . . . . . . . . . . . . . . . . . . . . . . . . . Max Security . | . . . . . . . . . . . . . . . . . . . . . . . . . . . . . . Squads Dispatched 40 | . . . . . . 5 1 . 2 . . . 1 5 1 . . 4 3 . . . . 2 . . 11 . 5 Investigation 3 | . . . . . . 2 . . . . . . . . . . . . 1 . . . . . . . . . . Extermination 10 | . . . . . . . 1 . 1 . . . . 1 . . . 1 1 . . . . 2 . . 3 . . Reinforcement 13 | . . . . . . 1 . . 1 . . . . 4 1 . . 3 1 . . . . . . . 1 . 1 Assault 3 | . . . . . . 2 . . . . . . 1 . . . . . . . . . . . . . . . . Garrison 5 | . . . . . . . . . . . . . . . . . . . . . . . . . . . 4 . 1 Intercept 6 | . . . . . . . . . . . . . . . . . . . . . . . . . . . 3 . 3 Construction Impeded 2 | . . . . . . . . . . . . . . 1 . . . 1 . . . . . . . . . . . Haulers Reinforced 1 | . . . . . . . . . . . . . . 1 . . . . . . . . . . . . . . . Stealth | -11 -10 -10 -10 -9 -8 -8 -7 -7 -7 -7 -7 -7 -6 -6 -6 -6 -6 -6 -5 -5 -5 -5 -4 -4 -4 -4 -3 -2 -1 --------- Run | Scr Mat Min Exi Min Mat Sto Fac Was Fac Low Low Zio Pro Fac Ext Cet Arc Hub Fac Upp Upp Zhi Pro Fac Arm Lab Res Res Acc Distress Signals 15 | . . . . . . 2 . . . . . . . 5 2 1 . . 2 . . . . 2 . . 1 . . Communications Jammed . | . . . . . . . . . . . . . . . . . . . . . . . . . . . . . . Distress Signals . | . . . . . . . . . . . . . . . . . . . . . . . . . . . . . . Times Spotted 336 | . 15 . . 4 . 43 13 . 9 7 . . 19 38 8 15 3 11 32 8 4 . 11 30 . 1 37 7 21 Peak Tracking Total 17 | . 2 . . 2 . 8 4 . 3 5 . . 5 4 4 5 1 3 6 7 4 . 5 8 . 1 7 4 17 Tactical Retreats 13 | . 1 . . . . 2 . . . . . . 1 2 . . . . 3 . . . . 2 . . 1 . 1 Traps | -11 -10 -10 -10 -9 -8 -8 -7 -7 -7 -7 -7 -7 -6 -6 -6 -6 -6 -6 -5 -5 -5 -5 -4 -4 -4 -4 -3 -2 -1 ------- Run | Scr Mat Min Exi Min Mat Sto Fac Was Fac Low Low Zio Pro Fac Ext Cet Arc Hub Fac Upp Upp Zhi Pro Fac Arm Lab Res Res Acc Traps Triggered 24 | . 9 . . . . 1 3 . 2 . . . . 2 . . . . 1 . . . . . . . 2 . 4 Indirectly 2 | . . . . . . . . . . . . . . . . . . . . . . . . . . . . . 2 Trap Hack Attempts . | . . . . . . . . . . . . . . . . . . . . . . . . . . . . . . Triggered . | . . . . . . . . . . . . . . . . . . . . . . . . . . . . . . Disarmed 6 | . . . . . . . . . . . . . . . . . . . . . . . . 6 . . . . . Reprogrammed . | . . . . . . . . . . . . . . . . . . . . . . . . . . . . . . Reused . | . . . . . . . . . . . . . . . . . . . . . . . . . . . . . . Traps Extracted . | . . . . . . . . . . . . . . . . . . . . . . . . . . . . . . Installed . | . . . . . . . . . . . . . . . . . . . . . . . . . . . . . . Triggered 6 | . . . . . . . . . . 2 . . 3 . . . . . . . . . . . . . . . 1 Exploded 1 | . . . 1 . . . . . . . . . . . . . . . . . . . . . . . . . . Machines | -11 -10 -10 -10 -9 -8 -8 -7 -7 -7 -7 -7 -7 -6 -6 -6 -6 -6 -6 -5 -5 -5 -5 -4 -4 -4 -4 -3 -2 -1 ---------- Run | Scr Mat Min Exi Min Mat Sto Fac Was Fac Low Low Zio Pro Fac Ext Cet Arc Hub Fac Upp Upp Zhi Pro Fac Arm Lab Res Res Acc Machines Disabled 35 | . . . . . . 3 . . . 1 . . 1 3 3 2 2 11 3 . . . . 4 . 1 1 . . Max in Single Turn 10 | . . . . . . 1 . . . . . . 1 2 1 1 1 10 1 . . . . 1 . 1 1 . . Garrison Access 7 | . . . . . . 1 . . . . . . . 1 . . . 1 . . . . . 1 . . 1 1 1 Network Hub 1 | . . . . . . . . . . . . . . . . . . 1 . . . . . . . . . . . Energy Cycler 2 | . . . . . . . . . . . . . . . 2 . . . . . . . . . . . . . . Machines Sabotaged . | . . . . . . . . . . . . . . . . . . . . . . . . . . . . . . Garrisons Compromised . | . . . . . . . . . . . . . . . . . . . . . . . . . . . . . . Overloaded Fab Kills . | . . . . . . . . . . . . . . . . . . . . . . . . . . . . . . Fab Network Shutdowns 2 | . . . . . . . 1 . . . . . . 1 . . . . . . . . . . . . . . . Hacking | -11 -10 -10 -10 -9 -8 -8 -7 -7 -7 -7 -7 -7 -6 -6 -6 -6 -6 -6 -5 -5 -5 -5 -4 -4 -4 -4 -3 -2 -1 --------- Run | Scr Mat Min Exi Min Mat Sto Fac Was Fac Low Low Zio Pro Fac Ext Cet Arc Hub Fac Upp Upp Zhi Pro Fac Arm Lab Res Res Acc Machines Accessed 74 | . 8 . 2 . 1 11 5 . 3 . 2 . . 4 8 3 . 2 2 . . 5 . 4 . 2 4 5 3 Terminals 46 | . 7 . . . . 9 3 . 1 . . . . 1 8 3 . 1 2 . . . . 3 . . 3 4 1 Fabricators 4 | . . . . . . . 1 . 1 . . . . 2 . . . . . . . . . . . . . . . Repair Stations 5 | . 1 . . . . 1 1 . 1 . . . . . . . . . . . . . . . . . . . 1 Recycling Units . | . . . . . . . . . . . . . . . . . . . . . . . . . . . . . . Scanalyzers 1 | . . . . . 1 . . . . . . . . . . . . . . . . . . . . . . . . Garrison Access 7 | . . . . . . 1 . . . . . . . 1 . . . 1 . . . . . 1 . . 1 1 1 Total Hacks 244 | . 28 . 5 . 2 27 17 . 7 . 5 . . 9 13 7 . 3 15 . . 18 . 26 . 19 14 19 10 Successful 185 | . 18 . 5 . 2 15 11 . 3 . 5 . . 8 10 6 . 2 9 . . 18 . 21 . 19 5 19 9 Failed 59 | . 10 . . . . 12 6 . 4 . . . . 1 3 1 . 1 6 . . . . 5 . . 9 . 1 Catastrophic 10 | . . . . . . 2 . . . . . . . . 1 . . . . . . . . 2 . . 5 . . Database Lockouts . | . . . . . . . . . . . . . . . . . . . . . . . . . . . . . . Manual 103 | . 14 . 1 . . 12 8 . 1 . . 1 . 4 5 1 . 1 17 . . . . 16 . . 8 11 3 Terminals 150 | . 22 . . . . 23 7 . 2 . . . . 2 13 7 . 1 15 . . . . 24 . . 13 18 3 Fabricators 13 | . . . . . . . 4 . 3 . . . . 6 . . . . . . . . . . . . . . . Repair Stations 23 | . 6 . . . . 3 6 . 2 . . . . . . . . . . . . . . . . . . . 6 Recycling Units . | . . . . . . . . . . . . . . . . . . . . . . . . . . . . . . Scanalyzers 2 | . . . . . 2 . . . . . . . . . . . . . . . . . . . . . . . . Garrison Access 9 | . . . . . . 1 . . . . . . . 1 . . . 2 . . . . . 2 . . 1 1 1 Terminal Hacks 128 | . 10 . 5 . . 10 2 . . . 5 . . 1 10 6 . 1 8 . . 18 . 14 . 19 4 13 2 Record 39 | . . . 4 . . . . . . . 4 . . . . 5 . . . . . 6 . . . 19 . 1 . Part Schematic 13 | . 2 . . . . 2 . . . . . . . . . . . . . . . 4 . 3 . . . 2 . Robot Analysis 15 | . 2 . . . . 1 . . . . . . . . 1 . . . 6 . . 4 . . . . 1 . . Prototype ID Bank 6 | . . . . . . . . . . . . . . . . . . . . . . 4 . 2 . . . . . Open Door 12 | . . . . . . 4 . . . . 1 . . . 6 1 . . . . . . . . . . . . . Level Access Points 5 | . . . . . . . . . . . . . . . . . . 1 . . . . . . . . 1 2 1 Branch Access Points 5 | . . . . . . . 1 . . . . . . 1 . . . . 1 . . . . 1 . . 1 . . Emergency Access Points 2 | . 1 . . . . . . . . . . . . . . . . . . . . . . . . . . 1 . Machine Index 2 | . 1 . . . . . . . . . . . . . . . . . 1 . . . . . . . . . . Terminal Index 6 | . 1 . . . . . 1 . . . . . . . 1 . . . . . . . . . . . 1 2 . Fabricator Index 1 | . . . . . . . . . . . . . . . . . . . . . . . . . . . . 1 . Alert Level 2 | . . . . . . 1 . . . . . . . . . . . . . . . . . . . . . 1 . Unreport Threat 9 | . 1 . . . . 1 . . . . . . . . 1 . . . . . . . . 3 . . . 2 1 Locate Traps 2 | . 1 . . . . . . . . . . . . . . . . . . . . . . 1 . . . . . Disarm Traps 2 | . . . . . . . . . . . . . . . . . . . . . . . . 2 . . . . . Zone Layout 6 | . 1 . . . . 1 . . . . . . . . 1 . . . . . . . . 2 . . . 1 . EX-Prototype ID Bank 1 | . . . 1 . . . . . . . . . . . . . . . . . . . . . . . . . . Fabricator Hacks 7 | . . . . . . . 2 . 1 . . . . 4 . . . . . . . . . . . . . . . Load Schematic 4 | . . . . . . . 1 . 1 . . . . 2 . . . . . . . . . . . . . . . Build 3 | . . . . . . . 1 . . . . . . 2 . . . . . . . . . . . . . . . Repair Station Hacks 18 | . 4 . . . . 2 4 . 2 . . . . . . . . . . . . . . . . . . . 6 Scan Component 9 | . 2 . . . . 1 2 . 1 . . . . . . . . . . . . . . . . . . . 3 Repair 9 | . 2 . . . . 1 2 . 1 . . . . . . . . . . . . . . . . . . . 3 Recycling Unit Hacks . | . . . . . . . . . . . . . . . . . . . . . . . . . . . . . . Scanalyzer 2 | . . . . . 2 . . . . . . . . . . . . . . . . . . . . . . . . Insert Component 1 | . . . . . 1 . . . . . . . . . . . . . . . . . . . . . . . . Analyze 1 | . . . . . 1 . . . . . . . . . . . . . . . . . . . . . . . . Garrison Access Hacks 7 | . . . . . . 1 . . . . . . . 1 . . . 1 . . . . . 1 . . 1 1 1 Seal Access 7 | . . . . . . 1 . . . . . . . 1 . . . 1 . . . . . 1 . . 1 1 1 Unauthorized Hacks 23 | . 4 . . . . 2 3 . . . . . . 2 . . . . 1 . . . . 6 . . . 5 . Terminals 20 | . 4 . . . . 2 1 . . . . . . 1 . . . . 1 . . . . 6 . . . 5 . Track 7 | . 2 . . . . 1 . . . . . . . . . . . . . . . . . 3 . . . 1 . Assimilate 1 | . . . . . . . . . . . . . . . . . . . . . . . . . . . . 1 . Botnet 9 | . 2 . . . . . 1 . . . . . . 1 . . . . 1 . . . . 2 . . . 2 . Operators 3 | . . . . . . 1 . . . . . . . . . . . . . . . . . 1 . . . 1 . Fabricators 3 | . . . . . . . 2 . . . . . . 1 . . . . . . . . . . . . . . . Prioritize 2 | . . . . . . . 1 . . . . . . 1 . . . . . . . . . . . . . . . Siphon 1 | . . . . . . . 1 . . . . . . . . . . . . . . . . . . . . . . Repair Stations . | . . . . . . . . . . . . . . . . . . . . . . . . . . . . . . Recycling Units . | . . . . . . . . . . . . . . . . . . . . . . . . . . . . . . Scanalyzers . | . . . . . . . . . . . . . . . . . . . . . . . . . . . . . . Garrison Access . | . . . . . . . . . . . . . . . . . . . . . . . . . . . . . . Data Cores Recovered 1 | . . . . . . . . . . . . . . . . . . . . . . . . 1 . . . . . Used . | . . . . . . . . . . . . . . . . . . . . . . . . . . . . . . Hacking Detections 44 | . 7 . . . 1 7 5 . 3 . . . . 2 2 3 . 2 2 . . . . 2 . . 2 4 2 Full Trace Events 4 | . . . . . . 3 . . . . . . . . . . . . 1 . . . . . . . . . . Feedback Events . | . . . . . . . . . . . . . . . . . . . . . . . . . . . . . . Feedback Blocked . | . . . . . . . . . . . . . . . . . . . . . . . . . . . . . . Robot Schematics Acquired . | . . . . . . . . . . . . . . . . . . . . . . . . . . . . . . Robots Built . | . . . . . . . . . . . . . . . . . . . . . . . . . . . . . . Matter . | . . . . . . . . . . . . . . . . . . . . . . . . . . . . . . Time . | . . . . . . . . . . . . . . . . . . . . . . . . . . . . . . Total Robot Build Rating . | . . . . . . . . . . . . . . . . . . . . . . . . . . . . . . Part Schematics Acquired 13 | . 2 . . . . 2 . . . . . . . . . . . . . . . 4 . 3 . . . 2 . Parts Built 6 | . . . . . . . 2 . . . . . . 4 . . . . . . . . . . . . . . . Matter 548 | . . . . . . . 190 . . . . . . 358 . . . . . . . . . . . . . . . Time 226 | . . . . . . . 95 . . . . . . 131 . . . . . . . . . . . . . . . Total Part Build Rating 28 | . . . . . . . 10 . . . . . . 18 . . . . . . . . . . . . . . . Parts Repaired 9 | . 2 . . . . 1 2 . 1 . . . . . . . . . . . . . . . . . . . 3 Time 146 | . 26 . . . . 18 35 . 19 . . . . . . . . . . . . . . . . . . . 48 Parts Recycled . | . . . . . . . . . . . . . . . . . . . . . . . . . . . . . . Recycled Matter . | . . . . . . . . . . . . . . . . . . . . . . . . . . . . . . Retrieved Matter . | . . . . . . . . . . . . . . . . . . . . . . . . . . . . . . Retrieved Components . | . . . . . . . . . . . . . . . . . . . . . . . . . . . . . . Parts Scanalyzed 1 | . . . . . 1 . . . . . . . . . . . . . . . . . . . . . . . . Part Schematics Acquired . | . . . . . . . . . . . . . . . . . . . . . . . . . . . . . . Parts Damaged . | . . . . . . . . . . . . . . . . . . . . . . . . . . . . . . Bothacking | -11 -10 -10 -10 -9 -8 -8 -7 -7 -7 -7 -7 -7 -6 -6 -6 -6 -6 -6 -5 -5 -5 -5 -4 -4 -4 -4 -3 -2 -1 ------------ Run | Scr Mat Min Exi Min Mat Sto Fac Was Fac Low Low Zio Pro Fac Ext Cet Arc Hub Fac Upp Upp Zhi Pro Fac Arm Lab Res Res Acc Used RIF Installer . | . . . . . . . . . . . . . . . . . . . . . . . . . . . . . . Robots Hacked . | . . . . . . . . . . . . . . . . . . . . . . . . . . . . . . Non-combat . | . . . . . . . . . . . . . . . . . . . . . . . . . . . . . . Combat . | . . . . . . . . . . . . . . . . . . . . . . . . . . . . . . Robot Hacks Applied . | . . . . . . . . . . . . . . . . . . . . . . . . . . . . . . Relay Couplers Released 5 | . . . . . . . . . . . . . . . . . . . 3 . . . . . . . 2 . . Machine Destruction 2 | . . . . . . . . . . . . . . . . . . . . . . . . . . . 2 . . Programmers 3 | . . . . . . . . . . . . . . . . . . . 3 . . . . . . . . . . Robots Rewired 2 | . . . . . . . . . . . . . 1 . . . . . . 1 . . . . . . . . . Allies Hacked 2 | . . . . . . . . . 1 . . . . . 1 . . . . . . . . . . . . . . Hacks Repelled . | . . . . . . . . . . . . . . . . . . . . . . . . . . . . . . Allies | -11 -10 -10 -10 -9 -8 -8 -7 -7 -7 -7 -7 -7 -6 -6 -6 -6 -6 -6 -5 -5 -5 -5 -4 -4 -4 -4 -3 -2 -1 -------- Run | Scr Mat Min Exi Min Mat Sto Fac Was Fac Low Low Zio Pro Fac Ext Cet Arc Hub Fac Upp Upp Zhi Pro Fac Arm Lab Res Res Acc Total Allies 47 | . . . . 1 . 2 . 20 . . . . 1 . 8 2 . . 3 1 . . . . . . . 1 8 Largest Group 20 | . . . . 1 1 2 . 20 20 6 . . 1 . 5 2 2 2 3 1 1 . . . . . . 1 . Highest-Rated Group 518 | . . . . 31 28 62 . 518 518 186 . . 20 . 232 188 188 188 93 29 29 . . . . . . 26 . Highest-Rated Ally 156 | . . . . 31 28 31 . 35 35 31 . . 20 . 156 94 94 94 31 29 29 . . . . . . 26 . Total Orders 2 | . . . . . . . . . . . . . . . . . . . 2 . . . . . . . . . . EXPLORE 2 | . . . . . . . . . . . . . . . . . . . 2 . . . . . . . . . . Ally Attacks 239 | . . . . 4 1 9 . . 69 20 . . 3 . 55 15 15 19 18 . . . . . . . . . 11 Total Damage 5619 | . . . . 21 22 126 . . 1001 298 . . 79 . 1595 366 641 627 328 . . . . . . . . . 515 Kills 29 | . . . . . 1 1 . . 5 3 . . . . 7 3 2 5 2 . . . . . . . . . . Allies Corrupted 1 | . . . . . . . . . . . . . . . . . . . 1 . . . . . . . . . . Allies Melted 1 | . . . . . . 1 . . . . . . . . . . . . . . . . . . . . . . . Intel | -11 -10 -10 -10 -9 -8 -8 -7 -7 -7 -7 -7 -7 -6 -6 -6 -6 -6 -6 -5 -5 -5 -5 -4 -4 -4 -4 -3 -2 -1 ------- Run | Scr Mat Min Exi Min Mat Sto Fac Was Fac Low Low Zio Pro Fac Ext Cet Arc Hub Fac Upp Upp Zhi Pro Fac Arm Lab Res Res Acc Robot Analysis Total 15 | . 2 . . . . 1 . . . . . . . . 1 . . . 6 . . 4 . . . . 1 . . Derelict Logs Recovered 12 | . . . . . . . . . . 2 1 2 2 . . . . . . 1 2 . 2 . . . . . . Drone Launches 3 | . . . . . . . . . . . . . . . . . . . 3 . . . . . . . . . . Drone Recoveries 2 | . . . . . . . . . . . . . . . . . . . 2 . . . . . . . . . . Exploration | -11 -10 -10 -10 -9 -8 -8 -7 -7 -7 -7 -7 -7 -6 -6 -6 -6 -6 -6 -5 -5 -5 -5 -4 -4 -4 -4 -3 -2 -1 ------------- Run | Scr Mat Min Exi Min Mat Sto Fac Was Fac Low Low Zio Pro Fac Ext Cet Arc Hub Fac Upp Upp Zhi Pro Fac Arm Lab Res Res Acc Turns Passed 18987 | 89 1236 263 344 304 106 1399 944 413 995 298 580 1061 463 1224 642 469 127 406 1404 1087 411 267 603 1402 1 438 1417 133 461 Spaces Moved 9803 | 48 655 165 214 142 57 546 439 248 556 164 359 653 211 434 329 175 57 161 578 560 245 156 333 476 1 228 710 257 646 Core 13 | 6 1 . . . . . . . . . . . . . . . . . . . . . . . . . . . 6 Treads 8805 | 42 654 165 214 142 57 545 439 248 556 164 359 653 211 434 329 175 57 161 578 560 245 156 333 476 1 228 623 . . Legs . | . . . . . . . . . . . . . . . . . . . . . . . . . . . . . . Wheels . | . . . . . . . . . . . . . . . . . . . . . . . . . . . . . . Hover . | . . . . . . . . . . . . . . . . . . . . . . . . . . . . . . Flight 985 | . . . . . . 1 . . . . . . . . . . . . . . . . . . . . 87 257 640 Fastest Speed 50 | 50 160 160 160 160 160 160 162 162 162 162 162 162 162 162 162 160 160 160 160 160 160 160 160 160 160 160 50 50 50 Average Speed 150 | 146 160 160 160 177 160 166 162 162 162 162 162 162 162 162 171 160 160 160 160 160 160 160 160 160 160 160 148 50 51 Slowest Speed 1200 | 160 450 160 160 180 160 725 162 162 162 162 162 162 162 162 183 163 160 160 160 160 160 160 160 160 160 160 185 50 1200 Overloaded Moves . | . . . . . . . . . . . . . . . . . . . . . . . . . . . . . . Propulsion Burnouts . | . . . . . . . . . . . . . . . . . . . . . . . . . . . . . . Robots Hopped 11 | . . . . . . . . . . . . . . . . . . . . . . . . . . . 4 4 3 Cave-ins Triggered . | . . . . . . . . . . . . . . . . . . . . . . . . . . . . . . Teleports 1 | . . . . . . . . . . . . . . . . . . . . . . . . . 1 . . . . Exploration Rate (%) 42 | 4 91 50 60 34 9 76 14 73 16 28 61 72 39 13 53 73 74 22 19 79 47 60 55 16 1 100 19 10 18 Regions Visited 29 Branch Regions 18 Pre-discovered Areas 9 | . . . 1 . . . . . . 1 . 2 1 . . . . . . . . 3 1 . . . . . . Known Exits Taken 27 | 1 1 1 1 1 1 1 . . 1 1 1 1 1 1 1 1 1 1 1 1 1 1 1 1 1 1 1 1 . Unknown Exits Taken . | . . . . . . . . . . . . . . . . . . . . . . . . . . . . . . Scrap Searched 7 | . . . . . . . . . . 2 2 1 1 . . . . . . . . . 1 . . . . . . Spaces Dug 2 | . . . . . . . . . . . . . . . . . . 2 . . . . . . . . . . . Terrain Destroyed 393 | . 4 . . . . 6 . . . . . . 1 31 5 49 5 176 45 5 5 . 19 9 . . 4 . 29 Melee . | . . . . . . . . . . . . . . . . . . . . . . . . . . . . . . Projectile 89 | . . . . . . . . . . . . . 1 4 5 7 5 9 19 5 5 . 19 9 . . 1 . . AOE 304 | . 4 . . . . 6 . . . . . . . 27 . 42 . 167 26 . . . . . . . 3 . 29 Terrain Rammed . | . . . . . . . . . . . . . . . . . . . . . . . . . . . . . . Walls Destroyed . | . . . . . . . . . . . . . . . . . . . . . . . . . . . . . . Machines Disabled . | . . . . . . . . . . . . . . . . . . . . . . . . . . . . . . Actions | -11 -10 -10 -10 -9 -8 -8 -7 -7 -7 -7 -7 -7 -6 -6 -6 -6 -6 -6 -5 -5 -5 -5 -4 -4 -4 -4 -3 -2 -1 --------- Run | Scr Mat Min Exi Min Mat Sto Fac Was Fac Low Low Zio Pro Fac Ext Cet Arc Hub Fac Upp Upp Zhi Pro Fac Arm Lab Res Res Acc Total 12790 | 59 770 164 215 183 71 889 611 259 644 174 358 657 255 838 377 277 74 286 968 731 254 174 354 1018 1 260 860 256 753 Wait 2116 | . 41 . . 30 7 204 117 10 76 . . 3 10 336 29 52 8 106 338 159 6 5 . 482 . . 33 . 64 Move 9754 | 47 654 164 213 141 56 545 439 247 555 163 358 652 210 433 328 174 56 160 577 559 244 155 332 475 . 227 701 249 640 Hop 11 | . . . . . . . . . . . . . . . . . . . . . . . . . . . 4 4 3 Pick Up 50 | 3 10 . 1 1 1 6 3 . 1 1 . 1 . 2 1 . . 3 5 . . 2 . 2 . 2 1 . 4 Fast Attach 98 | 7 18 . . . 1 14 6 1 4 . . . . 2 1 5 1 1 5 . . 5 . 7 . 5 5 1 9 Attach 33 | . 1 . . . 3 2 3 . . . . . . 1 . . 1 . . . . . . . 1 2 14 2 3 Detach 2 | . . . . . 1 . . . . . . . . . . . . . . . . . . . . . 1 . . Swap 51 | . 7 . 1 3 2 10 4 . 1 . . . 1 7 2 2 1 1 2 . . 1 1 1 . 2 1 . 1 Drop 92 | . 7 . . 2 . 23 6 1 4 1 . 1 1 8 3 4 . 4 5 . . 6 1 6 . 5 3 . 1 Fire 525 | 2 31 . . 6 . 82 33 . 3 9 . . 31 47 13 40 7 10 35 8 4 . 20 41 . 17 80 . 6 Melee 11 | . . . . . . . . . . . . . . . . . . . . . . . . . . . 9 . 2 Ram . | . . . . . . . . . . . . . . . . . . . . . . . . . . . . . . Kick . | . . . . . . . . . . . . . . . . . . . . . . . . . . . . . . Crush 20 | . 1 . . . . 3 . . . . . . . 2 . . . 1 1 . . . . 4 . . 8 . . Escape Stasis 20 | . . . . . . . . . . . . . . . . . . . . . . . . . . . . . 20 Rewire 7 | . . . . . . . . . . . . . 2 . . . . . . 5 . . . . . . . . . Trap . | . . . . . . . . . . . . . . . . . . . . . . . . . . . . . . Miscellaneous . | . . . . . . . . . . . . . . . . . . . . . . . . . . . . . . Route ------- -11/Scrapyard -10/Materials (discovered 4 exits: *Mat x3 / *Min) -10/Mines (discovered 2 exits: *Mat / *Exi) -10/Exiles -9/Mines -8/Materials -8/Storage (discovered 2 exits: *Fac / Rec) -7/Factory (discovered 2 exits: *Low x2) -7/Waste -7/Factory -7/Lower Caves -7/Lower Caves (discovered 2 exits: *Fac / *Zio) -7/Zion -6/Proximity Caves -6/Factory (discovered 7 exits: Fac x3 / Low x2 / *Ext x2) -6/Extension (discovered 3 exits: *Fac x2 / *Cet) -6/Cetus -6/Archives -6/Hub_04(d) (discovered 4 exits: *Fac x4) -5/Factory (discovered 3 exits: *Fac / *Upp x2) -5/Upper Caves -5/Upper Caves -5/Zhirov -4/Proximity Caves -4/Factory (discovered 3 exits: Upp x2 / *Arm) -4/Armory -4/Lab -3/Research (discovered 5 exits: *Res x3 / Qua x2) -2/Research (discovered 3 exits: *Acc x3) -1/Access (discovered 1 exit: Sur) History --------- Turn | Location | Event 11 | -11/Scrapyard | Identified exit to Materials 11 | -11/Scrapyard | Discovered exit to Materials (range 16) 90 | -11/Scrapyard | Entered Materials 90 | -10/Materials | Evolved 1 slot: Weapon x1 267 | -10/Materials | Identified exit to Materials 267 | -10/Materials | Discovered exit to Materials (range 3) 308 | -10/Materials | Build established: Hacker-Mutant 471 | -10/Materials | Identified exit to Mines 471 | -10/Materials | Discovered exit to Mines (range 13) 658 | -10/Materials | Build established: Hacker-Tank 800 | -10/Materials | Discovered exit to Materials (range 13) 831 | -10/Materials | Discovered exit to Materials (range 14) 1179 | -10/Materials | Repaired Lgt. Treads 1193 | -10/Materials | Repaired Lgt. Treads 1326 | -10/Materials | Entered Mines 1382 | -10/Mines | Found a hidden stash of uninstalled traps 1401 | -10/Mines | Met a Derelict bent on vengeance 1467 | -10/Mines | Discovered exit to Materials (range 7) 1526 | -10/Mines | A weapon hastily lodged in a ceiling crevice suddenly fell to the ground 1582 | -10/Mines | Deemed a non-threat by the Exiles lab entrance 1582 | -10/Mines | Identified exit to Exiles 1582 | -10/Mines | Discovered exit to Exiles (range 5) 1589 | -10/Mines | Entered Exiles 1628 | -10/Exiles | Met 8R-AWN 1653 | -10/Exiles | Met EX-HEX 1701 | -10/Exiles | Met EX-BIN 1724 | -10/Exiles | Aligned with FarCom system 1725 | -10/Exiles | Given EX-Vault access code 1762 | -10/Exiles | Opened EX-Vault 1775 | -10/Exiles | Found Flying Fortress v7 1810 | -10/Exiles | Warned to stay clear of 0b10 Research branches 1830 | -10/Exiles | Exiles lab attacked by MAIN.C 1862 | -10/Exiles | Learned location of Zion (-7) 1920 | -10/Exiles | Identified exit to Mines 1920 | -10/Exiles | Discovered exit to Mines (range 10) 1933 | -10/Exiles | Left Exiles lab with Flying Fortress v7 1933 | -10/Exiles | Entered Mines 2080 | -9/Mines | Received a Mining Laser from a helpful Derelict 2217 | -9/Mines | Identified exit to Materials 2217 | -9/Mines | Discovered exit to Materials (range 10) 2237 | -9/Mines | Entered Materials 2237 | -8/Materials | Accompanied by 1 ally 2237 | -8/Materials | Evolved 4 slots: Propulsion x2, Utility x2 2261 | -8/Materials | Build established: Hacker-Skirmisher 2332 | -8/Materials | Identified exit to Storage 2332 | -8/Materials | Discovered exit to Storage (range 5) 2343 | -8/Materials | Entered Storage 2690 | -8/Storage | Identified exit to Recycling 2690 | -8/Storage | Discovered exit to Recycling (range 20) 2842 | -8/Storage | Found Prototype Protection 2842 | -8/Storage | Identified Lgt. Regenerative Plating 3208 | -8/Storage | Met a pair of Derelict thieves 3485 | -8/Storage | Repaired Broken Lgt. Treads 3725 | -8/Storage | Identified exit to Factory 3725 | -8/Storage | Discovered exit to Factory (range 7) 3742 | -8/Storage | Entered Factory 3742 | -7/Factory | Evolved 2 slots: Utility x1, Weapon x1 3901 | -7/Factory | Repaired Imp. Treads 3922 | -7/Factory | Repaired Arm. Treads 4135 | -7/Factory | Lost 3 parts (3w) 4220 | -7/Factory | Identified exit to Lower Caves 4580 | -7/Factory | Fabricated Hyp. Gauss Rifle (x2) 4636 | -7/Factory | Local fabrication network quarantined 4686 | -7/Factory | Sucked down chute 4686 | -7/Factory | Entered Waste 4687 | -7/Waste | Joined by Warlord forces that had cleared the area 5069 | -7/Waste | Identified exit to Factory 5069 | -7/Waste | Discovered exit to Factory (range 13) 5099 | -7/Waste | Entered Factory 5099 | -7/Factory | Accompanied by 20 allies 5144 | -7/Factory | Repaired Deuterium Engine 6084 | -7/Factory | Discovered exit to Lower Caves (range 6) 6094 | -7/Factory | Entered Lower Caves 6094 | -7/Lower Caves | Accompanied by 6 allies 6129 | -7/Lower Caves | Identified exit to Lower Caves 6260 | -7/Lower Caves | Attracted the attention of an 0b10 outpost 6390 | -7/Lower Caves | Build established: Hacker-Gunner 6392 | -7/Lower Caves | Entered another Lower Caves area 6396 | -7/Lower Caves | Identified exit to Factory 6396 | -7/Lower Caves | Discovered exit to Factory (range 9) 6708 | -7/Lower Caves | Learned Armory emergency access door positions 6927 | -7/Lower Caves | Learned Factory terminal intel 6947 | -7/Lower Caves | Identified exit to Zion 6947 | -7/Lower Caves | Discovered exit to Zion (range 14) 6972 | -7/Lower Caves | Entered Zion 7018 | -7/Zion | Learned 4 Factory zone layouts 7021 | -7/Zion | Received a hallucinogenic algorithm 7075 | -7/Zion | System corruption cleaned by Quarantine Array 7238 | -7/Zion | Given A8's code to call for help 7295 | -7/Zion | Learned location of Data Miner (-6) 7312 | -7/Zion | Given the Hacking Drone Bay 7682 | -7/Zion | Found CR-A16's Pointy Stick 8019 | -7/Zion | Identified exit to Proximity Caves 8019 | -7/Zion | Discovered exit to Proximity Caves (range 7) 8033 | -7/Zion | Entered Proximity Caves 8129 | -6/Proximity Caves | Attracted the attention of an 0b10 outpost 8496 | -6/Proximity Caves | Entered Factory 8496 | -6/Factory | Evolved 2 slots: Utility x2 8497 | -6/Factory | Identified exit to Factory 8498 | -6/Factory | Identified exit to Extension 8499 | -6/Factory | Loaded intel: 22 terminal locations 8798 | -6/Factory | Build established: Hacker-Skirmisher 8905 | -6/Factory | Fabricated Hyp. Gauss Rifle (x2) 8981 | -6/Factory | Fabricated Flak Gun (x2) 8995 | -6/Factory | Local fabrication network quarantined 9447 | -6/Factory | Identified exit to Lower Caves 9720 | -6/Factory | Entered Extension 9770 | -6/Extension | Rescued a captive Derelict 9890 | -6/Extension | Rescued a captive Derelict 9890 | -6/Extension | Rescued a captive Derelict 9967 | -6/Extension | Rescued a captive Derelict 9967 | -6/Extension | Rescued a captive Derelict 10005 | -6/Extension | Energy Cycler disabled 10005 | -6/Extension | Rescued a captive Derelict 10006 | -6/Extension | Rescued a captive Derelict 10006 | -6/Extension | Rescued a captive Derelict 10006 | -6/Extension | Rescued a captive Derelict 10007 | -6/Extension | Rescued a captive Derelict 10007 | -6/Extension | Rescued a captive Derelict 10060 | -6/Extension | Rescued A7 10100 | -6/Extension | Spotted B-75 Beast 10125 | -6/Extension | Spotted B-75 Beast 10130 | -6/Extension | Allies destroyed B-75 Beast 10134 | -6/Extension | Extracted ID and sensor layout for unrecognized location from A7's data core 10157 | -6/Extension | Destroyed B-75 Beast 10165 | -6/Extension | Discovered exit to Factory (range 14) 10336 | -6/Extension | Discovered exit to Factory (range 16) 10336 | -6/Extension | Identified exit to Cetus 10336 | -6/Extension | Discovered exit to Cetus (range 16) 10362 | -6/Extension | Entered Cetus 10362 | -6/Cetus | Accompanied by 1 ally 10397 | -6/Cetus | Spotted Cetus Guard 10397 | -6/Cetus | Spotted Cetus Guard 10400 | -6/Cetus | Spotted Cetus Guard 10403 | -6/Cetus | Spotted Cetus Guard 10423 | -6/Cetus | Destroyed Cetus Guard 10427 | -6/Cetus | Destroyed Cetus Guard 10450 | -6/Cetus | Destroyed Cetus Guard 10484 | -6/Cetus | Destroyed Cetus Guard 10512 | -6/Cetus | Lost 3 parts (1p2w) 10725 | -6/Cetus | Enhanced Grunt warped into view, answering call for help 10726 | -6/Cetus | Enhanced Grunt warped into view, answering call for help 10805 | -6/Cetus | Identified exit to Archives 10805 | -6/Cetus | Discovered exit to Archives (range 15) 10831 | -6/Cetus | Entered Archives 10831 | -6/Archives | Accompanied by 2 allies 10932 | -6/Archives | Identified exit to Hub_04(d) 10932 | -6/Archives | Discovered exit to Hub_04(d) (range 16) 10958 | -6/Archives | Entered Hub_04(d) 10958 | -6/Hub_04(d) | Accompanied by 2 allies 11327 | -6/Hub_04(d) | Network Hub disabled 11340 | -6/Hub_04(d) | Spotted Lightning 11364 | -6/Hub_04(d) | Entered Factory 11364 | -5/Factory | Evolved 2 slots: Utility x2 12293 | -5/Factory | Identified exit to Factory 12293 | -5/Factory | Discovered exit to Factory (range 5) 12312 | -5/Factory | Allied Derelicts emerged from ambush trap array 12343 | -5/Factory | Identified exit to Upper Caves 12768 | -5/Factory | Entered Upper Caves 13067 | -5/Upper Caves | Build established: Hacker-Gunner 13313 | -5/Upper Caves | Encountered a Warlord checkpoint 13752 | -5/Upper Caves | Attracted the attention of an 0b10 outpost 13795 | -5/Upper Caves | Destroyed 8 combat bots 13840 | -5/Upper Caves | Identified exit to Upper Caves 13840 | -5/Upper Caves | Discovered exit to Upper Caves (range 10) 13855 | -5/Upper Caves | Entered another Upper Caves area 13855 | -5/Upper Caves | Accompanied by 1 ally 14027 | -5/Upper Caves | Learned Factory interactive machine intel 14130 | -5/Upper Caves | Learned Factory trap positions 14251 | -5/Upper Caves | Identified exit to Zhirov 14251 | -5/Upper Caves | Discovered exit to Zhirov (range 9) 14266 | -5/Upper Caves | Entered Zhirov 14266 | -5/Zhirov | Identified exit to Proximity Caves 14266 | -5/Zhirov | Discovered exit to Proximity Caves (range 3) 14295 | -5/Zhirov | Met Zhirov 14336 | -5/Zhirov | Found Alien Artifact 14336 | -5/Zhirov | Identified Integrated Dissipator 14336 | -5/Zhirov | Installed Integrated Dissipator, increased core heat dissipation (+20) 14403 | -5/Zhirov | Found Alien Artifact 14476 | -5/Zhirov | Learned location of Quarantine (-3) 14476 | -5/Zhirov | Learned location of Testing (-2) 14476 | -5/Zhirov | Learned location of Command (-1) 14485 | -5/Zhirov | Zhirov requested help retrieving the SGEMP Prototype 14533 | -5/Zhirov | Entered Proximity Caves 14823 | -4/Proximity Caves | Attracted the attention of an 0b10 checkpoint 15113 | -4/Proximity Caves | Discovered exit to Factory (range 13) 15136 | -4/Proximity Caves | Entered Factory 15136 | -4/Factory | Evolved 2 slots: Utility x2 15137 | -4/Factory | Identified exit to Armory 15138 | -4/Factory | Loaded intel: 107 trap records 15139 | -4/Factory | Loaded intel: 45 interactive machine locations 15302 | -4/Factory | Identified exit to Upper Caves 15445 | -4/Factory | Build established: Hacker-Skirmisher 16498 | -4/Factory | Spotted B-86 Titan 16538 | -4/Factory | Entered Armory 16538 | -4/Armory | Identified Transdimensional Reconstructor 16538 | -4/Armory | Warped through subspace to slip node 16538 | -4/Armory | Identified exit to Lab 16538 | -4/Armory | Discovered exit to Lab (range 1) 16539 | -4/Armory | Entered Lab 16539 | -4/Lab | Identified exit to Research 16539 | -4/Lab | Discovered exit to Research (range 9) 16557 | -4/Lab | Hidden lab's door opened automatically 16557 | -4/Lab | Sensor layout match revealed 16558 | -4/Lab | Gained access to the hidden lab's interior 16564 | -4/Lab | Detected by scanners 16568 | -4/Lab | Unable to decrypt terminal 16573 | -4/Lab | Confronted by A5 16629 | -4/Lab | Destroyed A5 16635 | -4/Lab | Found Prototype Hackware 16635 | -4/Lab | Identified Exp. System Shield 16639 | -4/Lab | Found Prototype Protection 16639 | -4/Lab | Identified Med. Regenerative Plating 16728 | -4/Lab | Unable to decrypt terminal 16771 | -4/Lab | Found Alien Artifact 16771 | -4/Lab | Identified Core Reset Matrix 16771 | -4/Lab | Used Core Reset Matrix 16775 | -4/Lab | Sensed 3 artifacts in vicinity 16786 | -4/Lab | Discovered exit to Research (range 7) 16789 | -4/Lab | Found Prototype Hackware 16833 | -4/Lab | Found Prototype Hackware 16937 | -4/Lab | Build established: Wizard-Gunner 16977 | -4/Lab | Entered Research 16977 | -3/Research | Evolved 2 slots: Power x1, Utility x1 17572 | -3/Research | Lost 3 parts (1p2w) 17720 | -3/Research | Identified exit to Quarantine 17778 | -3/Research | Garrison activated, responded to threat 18014 | -3/Research | Garrison activated, responded to threat 18075 | -3/Research | Identified Deep Network Scanner 18149 | -3/Research | Spotted B-86 Titan 18214 | -3/Research | Destroyed B-86 Titan 18264 | -3/Research | Intercept squad dispatched 18277 | -3/Research | Spotted Tracker 18278 | -3/Research | Spotted Tracker 18284 | -3/Research | Destroyed Tracker 18292 | -3/Research | System corruption reached 10% 18295 | -3/Research | Destroyed Tracker 18314 | -3/Research | Spotted Combat Programmer 18334 | -3/Research | Spotted Combat Programmer 18361 | -3/Research | Identified exit to Research 18394 | -3/Research | Entered another Research area 18394 | -2/Research | Evolved 2 slots: Utility x2 18399 | -2/Research | Identified Exp. Hacking Suite 18400 | -2/Research | Identified exit to Access 18406 | -2/Research | Lost 13 parts (2p1n6u4w) 18453 | -2/Research | Spotted B-90 Cyclops 18489 | -2/Research | Spotted B-90 Cyclops 18527 | -2/Research | Entered Access 18527 | -1/Access | Evolved 2 slots: Utility x2 18583 | -1/Access | Repaired Lrg. Storage Unit 18604 | -1/Access | Repaired Lgt. Antimatter Reactor 18625 | -1/Access | Repaired Adv. EMP Blaster 18699 | -1/Access | Build established: Wizard-Mutant 18810 | -1/Access | Identified exit to Surface 18939 | -1/Access | Intercept squad dispatched 18950 | -1/Access | Spotted B-99 Colossus 18950 | -1/Access | Spotted B-99 Colossus 18956 | -1/Access | Spotted Tracker 18956 | -1/Access | Spotted Tracker 18956 | -1/Access | Spotted Combat Programmer 18968 | -1/Access | Released all parts (8) 18978 | -1/Access | Core integrity fell below 50% 18981 | -1/Access | Emitted hypermatrix ping 18983 | -1/Access | Core integrity fell below 20% 18986 | -1/Access | Assembled emerged from beneath the floor 18986 | -1/Access | Garrison activated, responded to threat 18988 | -1/Access | Destroyed by B-99 Colossus with Linear Accelerator Last Messages --------------- 18984_ Slug penetrates Tracker. 18984_ Slug penetrates Sealed Heavy Doors. 18985_ Penetrated by Slug. 18985_ Slug penetrates Sealed Heavy Doors. 18986_ Assembled emerge from beneath the floor. 18986_ as-54386 sneak attacks. 18986_ as-90446 sneak attacks. 18986_ Slug penetrates B-99 Colossus. 18986_ as-01490 sneak attacks. 18986_ as-89520 sneak attacks. 18986_ G-73 Enforcer knocked back. 18986_ G-73 Enforcer calls for garrison reinforcements. 18986_ ALERT: Activating Garrison Access A002. 18986_ Slug penetrates B-99 Colossus. 18986_ Slug penetrates G-73 Enforcer. 18986_ EMDS Slug penetrates as-01490. 18986_ as-01490 suffers critical hit. 18986_ as-01490 destroyed. 18987_ B-99 Colossus activates siege mode. 18987_ Slug penetrates Wall. Map ----- +----------------------------------------------------+ | ????????????????????????????????????? ! | | ??????????????????????????????????????? % | | ????????????????????????????????????????# = | | ????????????????????????????????????????# | | ??????????????????????????############### | | ?????????????##??#????##### """G""" | | ?????????????# ??? # """ """ | | ?????????????# ?? # g " | | ?????????????# """ # g " | | ?????????????# """ # ##### | | ?????????????# """ # #???? | | ?????????????# F" # #???? | | ?????????????# * """ # #???? | | ?????????????# "" # #???? | | ?????????????# # s #???? | | ?????????????# / #???? | | ?????????????# # s ##########+####???? | | ?????????????# p #u s ##????????????????? | | ?????????????##############ss ####??????????????? | | ???????????????????????# s #??????????????? | | ???????????????????????#a g #??????????????? | | ???????????????????????#!g g #??????????????? | | ???????????????????????#pg #??????????????? | | ???????????????????????#gBBaa BB #??????????????? | | ???????????????????????#gBBa BB #??????????????? | | ???????????????????????#a@saa #??????????????? | | ???????????????????????#""""""""""#??????????????? | | ?????????????????????????????????????????????????? | | ?????????????????????????????????????????????????? | | ?????????????????????????????????????????????????? | | ?????????????????????????????????????????????????? | | ?????????????????????????????????????????????????? | | ?????????????????????????????????????????????????? | | ?????????????????????????????????????????????????? | | ?????????????????????????????